[Event "Azerbaijan Men Championship 2024"]
[Site "Baku"]
[Date "2024.04.18"]
[Round "8.6"]
[White "Ibrahimli, Murad"]
[Black "Guliyev, Namig"]
[Result "1/2-1/2"]
[ECO "A28"]
[WhiteElo "2396"]
[BlackElo "2509"]
[Annotator "TA"]
[PlyCount "131"]
[EventDate "2024.04.11"]
[EventType "swiss"]
[EventCountry "AZE"]
[SourceTitle "playchess.com"]
[Source "ChessBase"]
[SourceQuality "1"]
[TimeControl "40/5400+30:1800+30"]

{[%evp 33,131,0,0,0,0,0,0,12,10,0,0,0,0,0,0,0,0,-16,-13,-19,-25,-20,-25,-24,-4,-3,-1,-44,-44,-44,-44,-44,-44,-44,-44,-44,-44,-44,-44,-44,-44,-44,-44,-44,-44,-44,-44,-44,-44,-44,-44,-44,-44,-44,-44,-44,-44,-44,-44,-44,-44,-44,-44,-45,-45,-45,-44,-44,-44,-44,-45,-45,-21,-21,-8,-8,-8,-8,-8,-71,-79,-118,-118,-118,-118,-118,-118,-118,-118,-118,-118,-118,-118,-118,-118,-118,0,0,0,0]} 1. c4 {[%emt 0:00:54]} e5 {[%emt 0:00:10]} 2. Nc3 {[%emt 0:01:40]} Nf6 {[%emt 0:01:13]} 3. Nf3 {[%emt 0:00:30]} Nc6 {[%emt 0:00:36]} 4. e3 {[%emt 0:00:05]} d5 {[%emt 0:00:41]} 5. cxd5 {[%emt 0:00:21]} Nxd5 {[%emt 0:00:08]} 6. Bb5 {[%emt 0:01:23]} Nxc3 {[%emt 0:00:08]} 7. bxc3 {[%emt 0:02:46]} Bd6 {[%emt 0:00:11]} 8. O-O {[%emt 0:00:11] A28: English Opening: Four Knights Variation.} O-O {[%emt 0:05:53]} 9. e4 {[%emt 0:23:30]} Ne7 {[%emt 0:01:27]} 10. d4 {[%emt 0:00:32]} Ng6 {[%emt 0:00:17]} 11. Bg5 {[%emt 0:01:09]} f6 {[%emt 0:00:10]} 12. Be3 {[%emt 0:00:30]} Kh8 $146 {[%emt 0:00:59]} ({Predecessor:} 12... c6 13. Bc4+ Kh8 14. d5 Qc7 15. Qd2 f5 16. exf5 Bxf5 17. dxc6 bxc6 18. Ng5 Rad8 {0-1 Apro,A (2183)-Zauer,G (2033) HUN-chT2 Toth 1112 2011 (1.6)}) 13. Bc4 {[%emt 0:00:54]} Qe7 {[%emt 0:00:53]} 14. Nd2 {[%emt 0:05:53]} f5 {[%emt 0:06:52]} 15. exf5 {[%emt 0:03:45]} Bxf5 {[%emt 0:01:11]} 16. Re1 {[%emt 0:01:06]} Rae8 {[%emt 0:03:50]} 17. Bf1 {[%emt 0:03:13]} exd4 {[%emt 0:03:13]} 18. Bxd4 {[%emt 0:04:56]} Qxe1 {[%emt 0:00:15]} 19. Qxe1 {[%emt 0:00:09]} Rxe1 {[%emt 0:00:07]} 20. Rxe1 {[%emt 0:00:02]} c5 {[%emt 0:00:09]} 21. Be3 {[%emt 0:01:25]} b6 {[%emt 0:00:14]} 22. Nc4 {[%emt 0:04:50]} Bc7 {[%emt 0:00:12]} 23. g3 {[%emt 0:03:21]} h6 {[%emt 0:02:08]} 24. h4 {[%emt 0:00:53]} Rd8 {[%emt 0:02:30]} 25. h5 {[%emt 0:08:35]} Ne5 {[%emt 0:00:35]} 26. Nxe5 {[%emt 0:01:48]} Bxe5 {[%emt 0:00:20]} 27. Bxc5 $1 {[%emt 0:00:33]} Bxc3 {[%emt 0:01:07]} 28. Re3 {[%emt 0:00:31]} Bf6 {[%emt 0:02:57]} 29. Bb4 {[%emt 0:08:28]} Bg4 {[%emt 0:00:42]} 30. Be7 {[%emt 0:03:18]} Re8 {[%emt 0:03:08]} 31. Bxf6 {[%emt 0:00:17]} Rxe3 {[%emt 0:00:06]} (31... Bxh5 $2 {perishes.} 32. Be5 $18) 32. Bxg7+ {[%emt 0:00:03]} Kxg7 {[%emt 0:00:10]} 33. fxe3 {[%emt 0:00:03]} Kf6 {[%emt 0:00:36]} 34. Kf2 {[%emt 0:00:05]} Bxh5 {[%emt 0:00:34]} 35. Ba6 {[%emt 0:02:37]} Ke5 {[%emt 0:00:26]} 36. Bd3 {[%emt 0:07:40]} Bg4 {[%emt 0:02:21]} 37. a3 {[%emt 0:00:17]} Bf5 {[%emt 0:05:26]} 38. Ba6 {[%emt 0:01:25]} Be4 {[%emt 0:00:28]} 39. Ke2 {[%emt 0:01:16]} Kd6 {[%emt 0:00:15]} 40. Kd2 {[%emt 0:00:00]} Kc5 {[%emt 0:00:00]} 41. Bf1 {[%emt 0:05:39]} a5 {[%emt 0:00:35]} 42. Kc3 {[%emt 0:00:07]} b5 {[%emt 0:00:22]} 43. Be2 {[%emt 0:00:06]} Bd5 {[%emt 0:00:16]} 44. Bd3 $1 {[%emt 0:03:24]} b4+ {[%emt 0:01:01]} 45. axb4+ {[%emt 0:00:23]} axb4+ {[%emt 0:00:05]} 46. Kc2 {[%emt 0:01:00]} Kd6 {[%emt 0:00:50]} 47. Kc1 {[%emt 0:01:49]} Ke5 {[%emt 0:00:11]} 48. Kd2 {[%emt 0:00:56]} Bf3 {[%emt 0:00:33]} 49. Bg6 {[%emt 0:07:07]} Kf6 {[%emt 0:03:14]} 50. Be8 {[%emt 0:00:23]} Kg5 {[%emt 0:00:24]} 51. Bd7 {[%emt 0:00:06]} Be4 {[%emt 0:01:19]} 52. Be6 {[%emt 0:06:59]} Bf5 {[%emt 0:02:24]} 53. Bd5 {[%emt 0:00:16]} Kg4 {[%emt 0:00:39]} 54. e4 {[%emt 0:00:04]} Bg6 {[%emt 0:00:14]} 55. Kd3 {[%emt 0:03:23]} Kxg3 {[%emt 0:00:12]} 56. Kc4 {[%emt 0:00:14]} (56. Kd4 $1 $11 {keeps the balance.}) 56... Kf4 $17 {[%emt 0:00:16]} 57. Kxb4 {[%emt 0:00:05]} h5 $1 {[%emt 0:00:10]} ({But not} 57... Bxe4 $6 58. Bf7 $11) 58. Kc3 {[%emt 0:06:16]} Bxe4 {[%emt 0:00:24]} 59. Be6 {[%emt 0:01:27]} Ke3 {[%emt 0:00:12]} 60. Bf7 {[%emt 0:00:39]} h4 {[%emt 0:00:08]} 61. Be6 {[%emt 0:00:03]} Bf3 {[%emt 0:00:29]} 62. Bd7 {[%emt 0:00:55]} Bh5 {[%emt 0:01:41]} 63. Bc8 {[%emt 0:00:30]} Kf3 {[%emt 0:01:40]} 64. Kd2 {[%emt 0:00:20]} Bg4 {[%emt 0:00:05]} (64... Bf7 $17) 65. Bxg4+ $11 {[%emt 0:00:18]} Kxg4 {[%emt 0:00:06]} 66. Ke2 {[%emt 0:00:03]} 1/2-1/2

[Event "Azerbaijan Men Championship 2024"]
[Site "Baku"]
[Date "2024.04.18"]
[Round "8.7"]
[White "Hamidov, Allahverdi"]
[Black "Suleymanli, Suleyman"]
[Result "1/2-1/2"]
[ECO "D27"]
[WhiteElo "2091"]
[BlackElo "2246"]
[Annotator "TA"]
[PlyCount "202"]
[EventDate "2024.04.11"]
[EventType "swiss"]
[EventCountry "AZE"]
[SourceTitle "playchess.com"]
[Source "ChessBase"]
[SourceQuality "1"]
[TimeControl "40/5400+30:1800+30"]

{[%evp 24,202,36,19,20,11,27,18,58,30,27,0,8,8,10,0,14,0,0,0,27,44,26,0,0,0,0,0,0,0,0,0,0,0,0,0,0,0,0,-11,-9,-15,-8,-8,-19,-8,-8,-8,-8,-19,-5,-19,-19,-19,-19,-19,-19,-19,-19,-19,-19,-19,-19,-97,-19,-19,-18,-19,-19,-19,-19,-19,-19,-19,-19,-19,-18,-19,-19,-19,-6,-19,0,-97,-97,-97,0,0,0,0,0,0,0,0,0,0,0,-18,-18,-27,-27,-97,-19,-19,-19,-19,-19,-97,-19,-97,-97,-97,-97,-97,0,0,0,0,0,0,0,0,0,-97,-97,-97,-97,-97,0,0,0,0,0,0,0,-97,0,0,0,0,0,-6,-6,-14,-14,-14,0,0,0,0,0,0,0,0,0,0,0,0,0,0,0,0,0,0,0,0,0,0,0,0,0,0,0,0,0,0,0,0,0,0,0]} 1. d4 {[%emt 0:01:04]} d5 {[%emt 0:00:01]} 2. c4 {[%emt 0:00:06]} dxc4 {[%emt 0:00:05]} 3. Nf3 {[%emt 0:00:19]} Nf6 {[%emt 0:00:17]} 4. e3 {[%emt 0:00:08]} e6 {[%emt 0:00:09]} 5. Bxc4 {[%emt 0:00:06]} c5 {[%emt 0:00:03]} 6. O-O {[%emt 0:00:08]} a6 {[%emt 0:00:04]} 7. b3 {[%emt 0:03:33]} b5 {[%emt 0:01:14]} 8. Be2 {[%emt 0:00:06]} Bb7 {[%emt 0:00:25]} 9. Bb2 {[%emt 0:00:13]} Nbd7 {[%emt 0:00:57]} 10. a4 {[%emt 0:00:23]} b4 {[%emt 0:00:46]} 11. Nbd2 {[%emt 0:00:07]} Be7 {[%emt 0:01:13]} 12. Rc1 {[%emt 0:00:14]} O-O {[%emt 0:06:17]} 13. Nc4 {[%emt 0:01:04]} Rc8 {[%emt 0:07:59]} 14. Nfe5 {[%emt 0:01:38]} Qc7 {[%emt 0:04:06]} 15. Bf3 {[%emt 0:13:15]} Rfd8 {[%emt 0:08:09]} 16. Bxb7 {[%emt 0:01:25]} Qxb7 {[%emt 0:00:02]} 17. Qf3 {[%emt 0:01:00]} Qxf3 {[%emt 0:01:46]} 18. gxf3 {[%emt 0:01:56][%cal Bg2f3,Bf3f4][%mdl 32]} Nxe5 {[%emt 0:09:12]} 19. dxe5 {[%emt 0:03:29]} Nd5 {[%emt 0:10:29]} 20. f4 {[%emt 0:17:04]} f5 {[%emt 0:04:01]} 21. Rc2 {[%emt 0:03:27]} Rd7 {[%emt 0:06:58]} 22. Rfc1 {[%emt 0:03:06]} h6 {[%emt 0:10:19]} 23. a5 {[%emt 0:07:48]} g5 {[%emt 0:04:13]} 24. fxg5 {[%emt 0:00:05]} hxg5 {[%emt 0:00:06]} 25. Nd6 {[%emt 0:03:52]} Bxd6 {[%emt 0:00:03]} 26. exd6 {[%emt 0:00:06]} Rxd6 {[%emt 0:00:16]} 27. Bd4 {[%emt 0:04:12]} Rdc6 {[%emt 0:04:44][%cal Oc5c4]} 28. Rxc5 {[%emt 0:01:10]} Nc3 {[%emt 0:02:47]} 29. Rxc6 {[%emt 0:00:14]} Rxc6 $11 {[%emt 0:00:02][%mdl 4096] Endgame. KRB-KRN} 30. Kf1 {[%emt 0:01:05] Dodges Ne2} Kf7 {[%emt 0:00:39]} 31. Bxc3 {[%emt 0:00:36]} bxc3 {[%emt 0:00:09] KR-KR} (31... Rxc3 $2 {perishes.} 32. Rxc3 bxc3 33. Ke2 $18) 32. Ke2 {[%emt 0:00:26]} Rc5 {[%emt 0:00:59]} 33. Kd3 {[%emt 0:09:30]} Rxa5 {[%emt 0:00:18]} 34. Rxc3 {[%emt 0:01:30]} g4 {[%emt 0:07:26] Strongly threatening ...Ra2.} 35. Ke2 {[%emt 0:12:18]} Ra1 {[%emt 0:00:23]} 36. Rc6 {[%emt 0:00:12]} Kf6 {[%emt 0:00:47]} 37. Rc5 {[%emt 0:03:48]} Rh1 {[%emt 0:04:40]} 38. Ra5 {[%emt 0:00:17]} Rxh2 {[%emt 0:00:01] ...g3 is the strong threat.} 39. Kf1 {[%emt 0:00:57]} Rh1+ {[%emt 0:00:21]} 40. Kg2 {[%emt 0:00:00]} Rb1 {[%emt 0:00:00]} 41. Rxa6 {[%emt 0:00:11]} Rxb3 {[%emt 0:00:04]} 42. Ra5 {[%emt 0:00:35]} Rb2 {[%emt 0:01:12]} 43. Rc5 {[%emt 0:01:23]} (43. Kg3 $11) 43... Ke7 {[%emt 0:01:01]} (43... e5 $1 $17) 44. Ra5 {[%emt 0:00:10]} Rb4 {[%emt 0:00:30]} 45. Ra7+ {[%emt 0:01:35]} Kf6 {[%emt 0:00:08]} 46. Ra5 {[%emt 0:01:03]} Rb3 {[%emt 0:00:59]} 47. Rc5 {[%emt 0:01:06]} Rd3 {[%emt 0:00:14]} 48. Ra5 {[%emt 0:00:53]} Rd5 {[%emt 0:00:26]} 49. Ra6 {[%emt 0:00:24]} Ke5 {[%emt 0:01:07]} 50. Rb6 {[%emt 0:01:00]} Ra5 {[%emt 0:00:08]} 51. Kg3 {[%emt 0:00:15]} Kd5 {[%emt 0:01:28]} 52. Kg2 {[%emt 0:01:46]} e5 {[%emt 0:00:36]} 53. Rb4 {[%emt 0:01:46]} (53. Kg3 $11) 53... Ra2 $1 $17 {[%emt 0:00:38]} 54. Kg3 {[%emt 0:00:40]} Ra1 {[%emt 0:01:11]} ({Black should play} 54... e4 $1 $17) 55. Rb5+ $11 {[%emt 0:02:10]} Ke4 {[%emt 0:00:13]} 56. Kg2 {[%emt 0:00:11]} Rd1 {[%emt 0:01:19]} 57. Rb4+ {[%emt 0:00:34]} Kd3 {[%emt 0:01:00]} 58. Rb5 {[%emt 0:05:12]} Ke4 {[%emt 0:00:06]} 59. Rb4+ {[%emt 0:00:05]} Kd5 {[%emt 0:00:01]} 60. Rb5+ {[%emt 0:00:14]} Ke6 {[%emt 0:00:01]} 61. Rb6+ {[%emt 0:00:34]} Rd6 {[%emt 0:00:02]} 62. Rb5 {[%emt 0:00:07]} (62. Rb2 $1 $11) 62... Kf6 {[%emt 0:00:40]} ({Black should try} 62... e4 $1 $17) 63. Kg3 {[%emt 0:00:37]} Rd8 {[%emt 0:00:30]} 64. Rb6+ {[%emt 0:00:30]} Kg5 {[%emt 0:00:30]} 65. Rb5 {[%emt 0:00:30] [#]} (65. f4+ $11 {keeps the balance.} exf4+ 66. exf4+ Kh5 67. Rf6) 65... Re8 {[%emt 0:00:30]} ({Better is} 65... e4 $1 $17) 66. Ra5 {[%emt 0:00:30] [#]} (66. f3 $11) 66... e4 $1 $17 {[%emt 0:00:30]} 67. Kg2 {[%emt 0:00:30]} Rh8 {[%emt 0:00:30]} 68. Ra6 {[%emt 0:00:30]} Rh3 {[%emt 0:00:30]} (68... Rb8 $17) 69. Ra8 $11 {[%emt 0:00:30]} Rf3 {[%emt 0:00:30]} 70. Kf1 {[%emt 0:00:30]} Kf6 {[%emt 0:00:30] ...g3 would now be deadly.} (70... g3 $5 71. Rg8+ $8 Kh4 72. Rh8+ Kg5 73. Rg8+ Kh4 74. Rh8+ Kg4 75. Rg8+ Kh4 $11) 71. Rg8 {[%emt 0:00:30]} Kf7 {[%emt 0:00:30]} 72. Rg5 {[%emt 0:00:30]} Ke6 {[%emt 0:00:30] Hoping for ...g3.} 73. Ke2 {[%emt 0:00:30]} (73. Rg6+ $11 Kf7 74. Rg5) 73... Rh3 $17 {[%emt 0:00:30]} 74. Kf1 {[%emt 0:00:30]} Kf6 {[%emt 0:00:30]} 75. Rg8 {[%emt 0:00:30]} Rh5 {[%emt 0:00:30]} (75... Kf7 $17 76. Rg5 Kf6) 76. Kg2 $11 {[%emt 0:00:30]} Kf7 {[%emt 0:00:30]} 77. Ra8 {[%emt 0:00:30]} Rh3 {[%emt 0:00:30]} 78. Ra7+ {[%emt 0:00:30]} Kf6 {[%emt 0:00:30]} 79. Ra8 {[%emt 0:00:30]} (79. Ra6+ $11 Kg5 80. Ra8) 79... Rf3 {[%emt 0:00:30]} (79... Rh6 $17) 80. Ra3 {[%emt 0:00:30] The position is equal.} Ke6 {[%emt 0:00:30]} 81. Ra6+ {[%emt 0:00:30]} Kd5 {[%emt 0:00:30][%cal Og4g3]} 82. Ra5+ {[%emt 0:00:30]} Kc4 {[%emt 0:00:30]} 83. Ra4+ {[%emt 0:00:30]} Kb3 {[%emt 0:00:30]} 84. Ra8 {[%emt 0:00:30]} g3 {[%emt 0:00:30]} 85. fxg3 {[%emt 0:00:30]} Rxe3 {[%emt 0:00:30]} 86. Ra5 {[%emt 0:00:30]} Kc3 87. Rxf5 {[%emt 0:19:00]} Re2+ {[%emt 0:13:30]} 88. Kf1 {[%emt 0:02:33]} Kd2 {[%emt 0:03:44]} 89. g4 {[%emt 0:00:27]} Re1+ {[%emt 0:01:08]} 90. Kg2 $1 {[%emt 0:00:13]} e3 {[%emt 0:00:39][%cal Be4e3,Be3e2][%mdl 32]} 91. g5 {[%emt 0:00:56]} e2 {[%emt 0:01:35][%cal Oe1g1]} 92. Rd5+ {[%emt 0:00:07]} Ke3 {[%emt 0:00:28][%cal Oe1g1] ( -> ...Rg1+!)} 93. Re5+ $1 {[%emt 0:00:06]} Kf4 {[%emt 0:00:49]} 94. Re8 {[%emt 0:00:06] Black must now prevent g6.} Kxg5 {[%emt 0:00:13]} 95. Kf2 {[%emt 0:00:08][%csl LRe1,LRe2]} Ra1 {[%emt 0:00:03]} 96. Rxe2 {[%emt 0:00:09]} Ra5 {[%emt 0:00:05]} 97. Kf3 {[%emt 0:00:04]} Rf5+ {[%emt 0:00:02]} 98. Kg3 {[%emt 0:00:12]} Kf6 {[%emt 0:00:01]} 99. Kg4 {[%emt 0:00:06]} Rg5+ {[%emt 0:00:02]} 100. Kh4 {[%emt 0:00:23]} Re5 {[%emt 0:00:01]} 101. Rxe5 {[%emt 0:00:06]} Kxe5 {[%emt 0:00:01] Weighted Error Value: White=0.12 (very precise) /Black=0.09 (flawless) .  Mistake:       	White=7     	Black=7      Inaccurate:     	White=2     	Black=2      OK:         	White=40    	Black=34     Best:        	White=4     	---        Strong:       	White=2     	Black=2} 1/2-1/2

[Event "Azerbaijan Men Championship 2024"]
[Site "Baku"]
[Date "2024.04.18"]
[Round "8.8"]
[White "Rustamov, Rustam"]
[Black "Aslanov, Umid"]
[Result "1-0"]
[ECO "B81"]
[WhiteElo "2261"]
[BlackElo "2239"]
[Annotator "TA"]
[PlyCount "105"]
[EventDate "2024.04.11"]
[EventType "swiss"]
[EventCountry "AZE"]
[SourceTitle "playchess.com"]
[Source "ChessBase"]
[SourceQuality "1"]
[TimeControl "40/5400+30:1800+30"]

{[%evp 12,105,33,31,40,42,38,41,45,30,48,16,40,29,24,14,73,64,56,78,113,87,222,287,190,87,361,179,295,47,19,19,49,-55,-56,-65,-55,-52,-43,-42,-32,-76,-2,0,0,0,0,0,0,0,8,8,8,0,0,0,0,0,0,0,0,0,0,0,0,0,62,62,63,40,216,224,309,270,243,219,430,450,701,555,789,618,2136,2052,29976,29976,29977,29978,29980,29980,29988,29989,29990,29986,29986,29987]} 1. e4 {[%emt 0:00:22]} c5 {[%emt 0:00:04]} 2. Nf3 {[%emt 0:00:18]} d6 {[%emt 0:00:07]} 3. d4 {[%emt 0:00:07]} cxd4 {[%emt 0:00:04]} 4. Nxd4 {[%emt 0:00:03]} Nf6 {[%emt 0:00:05]} 5. Nc3 {[%emt 0:00:04]} a6 {[%emt 0:00:03]} 6. h3 {[%emt 0:00:16]} e6 {[%emt 0:00:08]} 7. g4 {[%emt 0:00:21][%cal Bg2g4,Bg4g5][%mdl 32]} Be7 {[%emt 0:00:08]} 8. g5 {[%emt 0:00:34]} Nfd7 {[%emt 0:00:04][%cal Oe8g8]} 9. Be3 {[%emt 0:00:48]} b5 {[%emt 0:00:27][%cal Ob5b4] White is slightly better.} (9... Bxg5 $6 10. Nxe6 fxe6 11. Qh5+ (11. Qxd6 $2 Qe7 $19) 11... g6 12. Qxg5 $16) 10. a3 {[%emt 0:02:08]} Bb7 {[%emt 0:00:19][%cal Oe8g8]} (10... Bxg5 11. Nxe6 fxe6 12. Qh5+ (12. Qxd6 $2 Qe7 $19) 12... g6 13. Qxg5 $16) 11. Qd2 {[%emt 0:01:09]} Nc6 {[%emt 0:02:22]} 12. h4 {[%emt 0:02:52]} O-O {[%emt 0:03:13]} 13. O-O-O {[%emt 0:04:58]} Qc7 {[%emt 0:00:47]} (13... Nxd4 $11 {remains equal.} 14. Bxd4 (14. Qxd4 Rc8 $14) 14... Bc6) 14. h5 $16 {[%emt 0:07:14]} Nc5 {[%emt 0:00:56]} 15. f3 {[%emt 0:10:33]} (15. Nxc6 {simplifies} Bxc6 16. f3 Rfd8 17. Kb1) 15... Rab8 {[%emt 0:07:30]} 16. g6 {[%emt 0:09:49] Hoping for Nxc6.} (16. Nxc6 {simplifies} Qxc6 17. Kb1 Na4 18. Bd4) 16... b4 {[%emt 0:44:39] [#]} (16... Ne5 $16 {keeps fighting.}) 17. h6 $1 {[%emt 0:03:54] Black must now prevent gxh7+.} fxg6 {[%emt 0:01:19] [#]} 18. hxg7 {[%emt 0:03:45]} (18. axb4 $1 $18 {and the rest is easy.} Nxb4 19. hxg7) 18... Rf7 {[%emt 0:00:06][%mdl 8192]} (18... Rxf3 $16 {might work better.} 19. Qh2 (19. Nxf3 bxc3 20. Qxc3 Nxe4 $11) 19... h5 20. Nxf3 bxc3) 19. Nxc6 {[%emt 0:03:02]} (19. Qh2 h5 20. axb4 (20. Nxc6 Bxc6 21. axb4 Qb6 $11) 20... Nxd4 $18) (19. axb4 $142 Nxb4 20. Qh2 Rxg7 21. Bc4) 19... bxc3 {[%emt 0:04:17]} (19... Bxc6 $142 20. axb4 (20. Qh2 h5 $11) 20... Qb7 (20... Rxb4 21. Qh2 $16)) 20. Qh2 $2 {[%emt 0:13:06]} (20. Nxe7+ $18 Qxe7 21. Qh2 (21. bxc3 Rc8 $18) (21. Qxc3 Rxf3 22. Rh3 Nxe4 $11) (21. Qxd6 Qxd6 22. Rxd6 Nxe4 $17)) 20... cxb2+ $14 {[%emt 0:02:17]} 21. Kb1 $1 {[%emt 0:00:42] Chess con chili.} h5 {[%emt 0:00:05]} 22. Nxe7+ {[%emt 0:02:50]} (22. Nxb8 $14 Rxf3 23. Nxa6) 22... Rxe7 $15 {[%emt 0:00:19]} 23. Bxc5 {[%emt 0:21:40]} (23. Rxd6 $2 Nxe4 24. fxe4 Bxe4 $19) (23. Qxd6 Na4 24. Qxc7 Rxc7 $17) 23... Qxc5 {[%emt 0:06:18]} 24. Qxd6 {[%emt 0:00:53]} Qxd6 {[%emt 0:03:25]} 25. Rxd6 {[%emt 0:00:02]} Kxg7 {[%emt 0:00:28]} 26. Rb6 {[%emt 0:00:22]} Ree8 {[%emt 0:01:41]} (26... Rf8 $17 27. Be2 e5 28. Kxb2 Rf6) 27. Bd3 $11 {[%emt 0:01:44]} (27. Kxb2 $2 Bxe4 28. Rb3 Bxf3 $19 (28... Rxb3+ $2 29. cxb3 Bxf3 30. Rh3 $19)) 27... Rec8 {[%emt 0:03:47]} 28. Rg1 {[%emt 0:03:25]} (28. Rxb2 a5 $15) (28. Kxb2 $2 Bxe4 29. Rxb8 Rxb8+ 30. Kc3 Rc8+ (30... Bxf3 $2 31. Rg1 $19) 31. Kd2 Bxf3 $19) 28... Bc6 {[%emt 0:02:57]} 29. Rxa6 {[%emt 0:00:19]} e5 {[%emt 0:01:37]} 30. f4 {[%emt 0:01:47]} Kh6 {[%emt 0:08:09]} 31. fxe5 {[%emt 0:00:31]} (31. f5 $5 g5 $8 32. f6 $11) 31... Ra8 {[%emt 0:01:32]} 32. Rb6 {[%emt 0:00:37]} Rxa3 {[%emt 0:00:45]} 33. Kxb2 {[%emt 0:00:14]} (33. Rxb2 Ra5 (33... Rca8 34. Kc1 $15) 34. e6 Rca8) 33... Ra5 {[%emt 0:00:03]} 34. e6 {[%emt 0:00:25][%cal Oe4e5]} Re5 {[%emt 0:00:45][%csl LRe4,LRe6]} 35. e7 {[%emt 0:00:35]} Rc7 {[%emt 0:01:22][%cal Oc7b7]} 36. c4 {[%emt 0:00:56][%cal Bc2c4,Bc4c5,Bc5c6][%mdl 32]} Be8 {[%emt 0:01:53]} (36... Bxe4 37. Rbxg6+ (37. Bxe4 Rxe4 38. Rbxg6+ Kh7 $18) 37... Kh7 38. R6g5 (38. Rg7+ Kh8 $18) 38... Rb7+ 39. Kc3 Rxg5 40. Bxe4+ (40. e8=R Bxd3 41. Rxg5 Kh6 $18) 40... Kh6 41. e8=Q (41. e8=R Rxg1 42. Bxb7 Kg7 $18) (41. Rxg5 Rxe7 42. Rg6+ Kh7 43. Re6+ Kg7 44. Rxe7+ Kf6 45. Rb7 Kg5) 41... Rxg1 42. Qf8+ (42. Bxb7 Rg3+ 43. Kb4 Kg5 44. Qd8+ Kf5 45. Qd5+ Kf4 46. Qd6+ Kg4 47. Qg6+ Kh4) (42. Qh8+ Kg5 $18) 42... Kg5 43. Qf5+ (43. Bxb7 Ra1 $18) 43... Kh4 44. Bxb7 $18 (44. Qf6+ Kg4 $18)) 37. Kc3 {[%emt 0:00:16]} Rcxe7 {[%emt 0:01:09]} ({Much worse is} 37... Rexe7 38. e5 $16) 38. Kd4 {[%emt 0:00:09]} Kg7 {[%emt 0:01:23]} (38... Rg5 $1 $11 39. Rxg5 Kxg5) 39. c5 $14 {[%emt 0:00:17]} h4 {[%emt 0:01:02]} 40. c6 {[%emt 0:00:00][%cal Oc6c7] Threatens to win with c7! White is more active.} Ra5 $2 {[%emt 0:00:00]} ({Better is} 40... R5e6 $1 $14) 41. Rb7 $18 {[%emt 0:02:03]} Ra7 {[%emt 0:02:03]} 42. Rxe7+ {[%emt 0:01:44]} Rxe7 {[%emt 0:00:05][%mdl 4096] Endgame. KRB-KRB} 43. e5 {[%emt 0:02:06] Be4 would now be deadly.} h3 $2 {[%emt 0:02:37]} (43... Ra7 44. Bb5 Ra8) 44. Be4 {[%emt 0:01:26]} Ra7 {[%emt 0:04:38]} (44... h2 $142 45. Rh1 Kh6 46. Rxh2+ Kg5) 45. Kc5 {[%emt 0:02:35]} h2 {[%emt 0:00:50]} 46. Rh1 {[%emt 0:00:27]} Ra2 {[%emt 0:00:10]} 47. Kd6 {[%emt 0:00:55] Threatening mate with c7.} Rd2+ {[%emt 0:01:35]} 48. Bd5 {[%emt 0:01:44] White mates.} Bxc6 {[%emt 0:01:00]} 49. Kxc6 {[%emt 0:00:24]} g5 {[%emt 0:00:33][%cal Bg6g5,Bg5g4][%mdl 32]} 50. e6 {[%emt 0:00:39][%cal Be5e6,Be6e7][%mdl 32]} Kf8 {[%emt 0:00:17]} 51. Kd6 {[%emt 0:00:25]} g4 {[%emt 0:00:06]} 52. e7+ {[%emt 0:00:07]} Ke8 {[%emt 0:00:03] [#]} 53. Rxh2 $3 {[%emt 0:00:11][%mdl 512] Weighted Error Value: White=0.30/Black=0.45.  Loses game:     	---       	Black=2      Missed win:     	White=1     	---        Mistake:       	White=3     	Black=7      Inaccurate:     	White=2     	Black=4      OK:         	White=16    	Black=13     Best:        	White=4     	Black=2      Strong:       	White=1     	---} 1-0